Cogmind - Beta 14 @@@ ROGUE MODE // 2024.12.30 @ 23:51:46 Player: SuperSwiss Result: Self-destructed Performance ------------- Evolutions (2) 1000 Regions Visited (4) 800 Robots Destroyed (19) 95 Value Destroyed (308) 308 Prototype IDs (1) 20 Alien Tech Used (0) 0 Bonus (0) 0 TOTAL SCORE: 2223 Bonus ------- None Cogmind --------- Core Integrity 105/550 Matter 171/400 Energy 100/100 System Corruption 0% Temperature Cool (0) Movement Core (50) Location -8/Materials Parts ------- > --- POWER (1) -------- (None) > --- PROPULSION (4) --- (None) > --- UTILITY (4) ------ Medium Matter Pod Hacking Suite > --- WEAPON (2) ------- (None) > --- INVENTORY (5) ---- (None) Peak State ------------ > --- POWER ------------ (None) > --- PROPULSION ------- Improved VTOL Module > --- UTILITY ---------- Propulsion Shielding Hacking Suite Hacking Suite > --- WEAPON ----------- Missile Launcher > --- INVENTORY -------- Medium Matter Pod [Rating: 14] Favorites ----------- Power Ion Engine Engine Ion Engine Propulsion Flight Unit Treads Light Treads Flight Unit Flight Unit Utility Propulsion Shielding Device Sensor Array Storage Medium Matter Pod Hackware Hacking Suite Protection Propulsion Shielding Weapon Assault Rifle Energy Gun EM Pulse Gun Ballistic Gun Assault Rifle Launcher Grenade Launcher Build | -11 -10 -10 -10 -8 ------- Run | Yrd Mat Min Sub Mat Slots Evolved 4 | . . . . 4 Power . | . . . . . Propulsion 2 | . . . . 2 Utility 2 | . . . . 2 Weapon . | . . . . . Parts Attached 26 | 4 8 4 . 10 Power 2 | 1 . 1 . . Engine 2 | 1 . 1 . . Core . | . . . . . Reactor . | . . . . . Propulsion 7 | 2 2 1 . 2 Treads 2 | 2 . . . . Leg . | . . . . . Wheel . | . . . . . Hover . | . . . . . Flight 5 | . 2 1 . 2 Utility 9 | . 4 1 . 4 Device 1 | . 1 . . . Storage 3 | . 1 . . 2 Processor . | . . . . . Hackware 2 | . . . . 2 Protection 3 | . 2 1 . . Artifact . | . . . . . Weapon 8 | 1 2 1 . 4 Energy Gun 5 | . 1 1 . 3 Energy Cannon . | . . . . . Ballistic Gun 1 | 1 . . . . Ballistic Cannon . | . . . . . Launcher 2 | . 1 . . 1 Special Weapon . | . . . . . Impact Weapon . | . . . . . Slashing Weapon . | . . . . . Piercing Weapon . | . . . . . Special Melee Weapon . | . . . . . Unidentified Prototypes 1 | . . . . 1 Parts Lost 14 | . 3 1 1 9 Power 2 | . 1 . . 1 Propulsion 4 | . . . . 4 Utility 3 | . 2 . . 1 Weapon 5 | . . 1 1 3 Highest Loss Streak 6 | . 3 1 1 6 To Critical Strikes . | . . . . . Average Slot Usage (%) 65 | . 74 75 69 43 Engine 7 | . 11 1 14 3 Treads 8 | . 20 . . . Flight 15 | . 7 28 28 13 Device 1 | . 4 . . . Storage 4 | . 2 12 . 3 Hackware 2 | . . . . 7 Protection 10 | . 13 10 14 5 Energy Gun 6 | . 2 9 12 5 Ballistic Gun 4 | . 10 . . . Launcher 3 | . . 11 . 3 Peak Build Rating 14 | 4 6 6 5 14 Average Rating 6 | 2 5 5 4 9 On Entrance 3 | . 4 5 5 4 Naked Turns . | . . . . . Heaviest Build 11 | 7 9 8 8 11 Greatest Support 40 | 40 40 8 8 12 Greatest Overweight (x) 2 | . . . . 2 Average Overweight (x) . | . . . . . Largest Inventory Capacity 5 | 5 5 5 5 5 Average Capacity 5 | 5 5 5 5 5 Most Carried 5 | 3 5 4 3 4 Average Carried 2 | 1 3 2 3 1 Final Capacity 5 | 5 5 5 5 5 Final Carried 3 | 2 3 3 3 . Class Distribution -------------------- 90% | Mutant 9% | Hacker-Mutant Dominant Class ---------------- Mutant | -10/Materials Mutant | -10/Mines Mutant | -10/Subcaves Mutant | -8/Materials Resources | -11 -10 -10 -10 -8 ----------- Run | Yrd Mat Min Sub Mat Matter Collected 494 | 217 57 42 112 66 Remotely . | . . . . . Salvage Created 278 | . 99 87 . 92 Parts 31 | . 14 8 . 9 Haulers Intercepted . | . . . . . Recyclers Shooed . | . . . . . Parts Field Recycled . | . . . . . Retrieved Matter . | . . . . . Parts Self-Destructed 7 | . . . 7 . Prevented . | . . . . . Kills | -11 -10 -10 -10 -8 ------- Run | Yrd Mat Min Sub Mat Combat Hostiles Destroyed 13 | . 6 5 . 2 Guns 6 | . 6 . . . AOE 7 | . . 5 . 2 Classes Destroyed 8 | . 2 4 . 2 Worker 2 | . . 1 . 1 Builder 1 | . . . . 1 Tunneler 2 | . . 2 . . Watcher 2 | . 1 . . 1 Swarmer 9 | . 6 3 . . Grunt 2 | . . 1 . 1 Sentry 1 | . . . . 1 Assembled 1 | . . 1 . . Best Kill Streak 4 | . 4 4 . 3 Combat Bots Only 3 | . 3 3 . 1 Max Kills in Single Turn 2 | . 1 2 . 1 Gunslinging . | . . . . . Exploded 2 | . . 2 . 1 Melee . | . . . . . Uniques/NPCs Destroyed . | . . . . . Combat | -11 -10 -10 -10 -8 -------- Run | Yrd Mat Min Sub Mat Hostile Shots Fired 153 | . 72 8 2 71 Missed 49 | . 17 2 . 30 Damage Taken 1619 | . 559 176 39 845 Core 656 | . 129 62 20 445 Absorbed by Shields . | . . . . . Redirected to Shielding 104 | . 59 3 . 42 Core Remaining (%) 57 | 100 . . 15 . Volleys Fired 69 | . 33 9 2 25 Largest 2 | . 1 2 1 1 Hottest 70 | . 50 70 40 50 Shots Fired 77 | . 33 17 2 25 Gun 63 | . 33 9 2 19 Cannon . | . . . . . Launcher 14 | . . 8 . 6 Special . | . . . . . Kinetic 25 | . 25 . . . Thermal 21 | . 8 . . 13 Explosive 14 | . . 8 . 6 Electromagnetic 17 | . . 9 2 6 Robot Hit Streak 9 | . 5 2 . 9 Robot Miss Streak 5 | . 4 2 . 5 Penetration Max . | . . . . . Secondary Targets . | . . . . . Shots Hit Robots 39 | . 17 4 . 18 Core Hits 34 | . 9 14 . 11 Critical Kills . | . . . . . Critical Parts Destroyed 1 | . 1 . . . Critical Strikes 1 | . 1 . . . Destroy 1 | . 1 . . . Melee Attacks . | . . . . . Impact . | . . . . . Slashing . | . . . . . Piercing . | . . . . . Sneak Attacks . | . . . . . Combat Hostiles . | . . . . . Follow-up Attacks . | . . . . . Damage Inflicted 1074 | . 234 366 . 474 Guns 436 | . 234 38 . 164 Cannons . | . . . . . Explosions 638 | . . 328 . 310 Melee . | . . . . . Ramming . | . . . . . Kinetic 157 | . 157 . . . Thermal 203 | . 77 . . 126 Explosive 638 | . . 328 . 310 Electromagnetic 76 | . . 38 . 38 Impact . | . . . . . Slashing . | . . . . . Piercing . | . . . . . Highest Corruption . | . . . . . Average Corruption . | . . . . . Corruption Purged . | . . . . . Corruption Blocked . | . . . . . Overload Shots . | . . . . . Overflow Damage 41 | . . 20 . 21 Projectiles . | . . . . . Explosions 41 | . . 20 . 21 Melee . | . . . . . Knockbacks . | . . . . . Impact . | . . . . . Kinetic . | . . . . . Secondary . | . . . . . Self-Inflicted Damage 216 | . . 107 . 109 Shots 6 | . . 4 . 2 Rammed . | . . . . . Targets Rammed . | . . . . . Kicked . | . . . . . Crushed . | . . . . . Highest Temperature 59 | . 44 8 . 59 Average Temperature 16 | . 21 3 . 17 Received Heat Transfer 582 | . 222 6 . 354 Siege Activations . | . . . . . Robots Corrupted . | . . . . . Combat Hostiles . | . . . . . Parts Fried . | . . . . . Impact Corruptions . | . . . . . Robots Melted . | . . . . . Combat Hostiles . | . . . . . Parts Melted . | . . . . . Heat Transferred 592 | . 222 . . 370 Parts Sabotaged . | . . . . . Parts Stolen . | . . . . . Parts Stripped . | . . . . . Power Chain Reactions . | . . . . . Alert | -11 -10 -10 -10 -8 ------- Run | Yrd Mat Min Sub Mat Peak Influence 252 | . 252 251 . 209 Initial 97 | . . 97 . 57 Average 90 | . 77 178 . 87 Maximum Alert Level 1 | . 1 1 . 1 Low Security (%) 87 | 100 94 46 . 98 Level 1 12 | . 5 53 . 1 Level 2 . | . . . . . Level 3 . | . . . . . Level 4 . | . . . . . Level 5 . | . . . . . High Security . | . . . . . Max Security . | . . . . . Squads Dispatched 1 | . . . . 1 Investigation . | . . . . . Extermination . | . . . . . Reinforcement 1 | . . . . 1 Assault . | . . . . . Garrison . | . . . . . Intercept . | . . . . . Searches Triggered . | . . . . . Construction Impeded . | . . . . . Haulers Reinforced . | . . . . . Active Scanning Responses . | . . . . . Cargo Convoy Interrupts . | . . . . . Stealth | -11 -10 -10 -10 -8 --------- Run | Yrd Mat Min Sub Mat Distress Signals 2 | . . . . 2 Communications Jammed . | . . . . . Distress Signals . | . . . . . Times Spotted 34 | . 14 6 3 11 Peak Tracking Total 5 | . 5 3 4 5 Tactical Retreats 7 | . 4 . . 3 Traps | -11 -10 -10 -10 -8 ------- Run | Yrd Mat Min Sub Mat Traps Triggered . | . . . . . Indirectly . | . . . . . Trap Hack Attempts . | . . . . . Triggered . | . . . . . Disarmed . | . . . . . Reprogrammed . | . . . . . Reused . | . . . . . Traps Extracted . | . . . . . Installed . | . . . . . Triggered . | . . . . . Machines | -11 -10 -10 -10 -8 ---------- Run | Yrd Mat Min Sub Mat Machines Disabled 3 | . . 1 . 2 Max in Single Turn 1 | . . 1 . 1 Machines Repaired . | . . . . . Machines Dismantled . | . . . . . Machines Sabotaged . | . . . . . Overloaded Fab Kills . | . . . . . Hacking | -11 -10 -10 -10 -8 --------- Run | Yrd Mat Min Sub Mat Machines Accessed . | . . . . . Terminals . | . . . . . Fabricators . | . . . . . Repair Stations . | . . . . . Recycling Units . | . . . . . Scanalyzers . | . . . . . Garrison Access . | . . . . . Total Hacks . | . . . . . Successful . | . . . . . Failed . | . . . . . Catastrophic . | . . . . . Database Lockouts . | . . . . . Manual . | . . . . . Terminals . | . . . . . Fabricators . | . . . . . Repair Stations . | . . . . . Recycling Units . | . . . . . Scanalyzers . | . . . . . Garrison Access . | . . . . . Terminal Hacks . | . . . . . Fabricator Hacks . | . . . . . Repair Station Hacks . | . . . . . Recycling Unit Hacks . | . . . . . Scanalyzer . | . . . . . Garrison Access Hacks . | . . . . . Unauthorized Hacks . | . . . . . Terminals . | . . . . . Fabricators . | . . . . . Repair Stations . | . . . . . Recycling Units . | . . . . . Scanalyzers . | . . . . . Garrison Access . | . . . . . Data Cores Recovered . | . . . . . Used . | . . . . . Hacking Detections . | . . . . . Full Trace Events . | . . . . . Feedback Events . | . . . . . Feedback Blocked . | . . . . . Robot Schematics Acquired . | . . . . . Robots Built . | . . . . . Authchips . | . . . . . Time . | . . . . . Total Robot Build Rating . | . . . . . Part Schematics Acquired . | . . . . . Parts Built . | . . . . . Authchips . | . . . . . Time . | . . . . . Total Part Build Rating . | . . . . . Parts Repaired . | . . . . . Time . | . . . . . Parts Recycled . | . . . . . Recycled Matter . | . . . . . Retrieved Matter . | . . . . . Retrieved Components . | . . . . . Parts Scanalyzed . | . . . . . Part Schematics Acquired . | . . . . . Parts Damaged . | . . . . . Bothacking | -11 -10 -10 -10 -8 ------------ Run | Yrd Mat Min Sub Mat Used RIF Installer . | . . . . . Robots Hacked . | . . . . . Non-combat . | . . . . . Combat . | . . . . . Robot Hacks Applied . | . . . . . Relay Couplers Released . | . . . . . Fabnet Peak Effective % . | . . . . . Robots Rewired . | . . . . . Allies Hacked . | . . . . . Hacks Repelled . | . . . . . Allies | -11 -10 -10 -10 -8 -------- Run | Yrd Mat Min Sub Mat Total Allies . | . . . . . Largest Group . | . . . . . Highest-Rated Group . | . . . . . Highest-Rated Ally . | . . . . . Total Orders . | . . . . . Ally Attacks . | . . . . . Total Damage . | . . . . . Kills . | . . . . . Allies Corrupted . | . . . . . Allies Melted . | . . . . . Intel | -11 -10 -10 -10 -8 ------- Run | Yrd Mat Min Sub Mat Robot Analysis Total . | . . . . . Derelict Logs Recovered . | . . . . . Drone Launches . | . . . . . Drone Recoveries . | . . . . . Exploration | -11 -10 -10 -10 -8 ------------- Run | Yrd Mat Min Sub Mat Turns Passed 803 | 79 293 130 103 198 Spaces Moved 974 | 48 224 234 268 200 Core 7 | 6 . . . 1 Treads 141 | 42 99 . . . Legs . | . . . . . Wheels . | . . . . . Hover . | . . . . . Flight 826 | . 125 234 268 199 Fastest Speed 34 | 50 37 37 37 34 Average Speed 60 | 146 91 37 37 65 Slowest Speed 200 | 160 160 37 37 200 Overloaded Moves . | . . . . . Propulsion Burnouts . | . . . . . Robots Hopped . | . . . . . Cave-ins Triggered . | . . . . . Exploration Rate (%) 20 | 3 32 38 10 21 Regions Visited 4 Branch Regions 2 Pre-discovered Areas 1 | . . . 1 . Known Exits Taken . | . . . . . Unknown Exits Taken 4 | 1 1 1 1 . Scrap Searched . | . . . . . Spaces Dug . | . . . . . Terrain Destroyed 74 | . . 34 . 40 Melee . | . . . . . Projectile . | . . . . . AOE 74 | . . 34 . 40 Terrain Rammed . | . . . . . Walls Destroyed . | . . . . . Machines Disabled . | . . . . . Actions | -11 -10 -10 -10 -8 --------- Run | Yrd Mat Min Sub Mat Total 1108 | 57 279 261 269 242 Wait 11 | . 4 7 . . Move 970 | 47 223 233 267 200 Hop . | . . . . . Pick Up 23 | 6 8 4 . 5 Fast Attach . | . . . . . Attach 24 | 4 7 3 . 10 Detach 3 | . . 1 . 2 Swap 2 | . 1 1 . . Drop 6 | . 3 3 . . Fire 69 | . 33 9 2 25 Melee . | . . . . . Ram . | . . . . . Kick . | . . . . . Crush . | . . . . . Escape Stasis . | . . . . . Rewire . | . . . . . Trap . | . . . . . Miscellaneous . | . . . . . Route ------- -11/Scrapyard -10/Materials -10/Mines (discovered 2 exits: [*Mat] / [*Sub]) -10/Subcaves -8/Materials History --------- Turn | Location | Event 10 | -11/Scrapyard | Discovered new exit (range 15) 80 | -11/Scrapyard | Entered Materials 336 | -10/Materials | Build established: Mutant 336 | -10/Materials | Core integrity fell below 50% 351 | -10/Materials | Lost 3 parts (1p2u) 368 | -10/Materials | Discovered new exit (range 12) 373 | -10/Materials | Entered Mines 378 | -10/Mines | Discovered new exit (range 9) 401 | -10/Mines | Met a Derelict bent on vengeance 417 | -10/Mines | Excavation squad dispatched 417 | -10/Mines | A large section of the Mines collapsed 492 | -10/Mines | Discovered new exit (range 8) 503 | -10/Mines | Entered Subcaves 582 | -10/Subcaves | Learned location of Zion (-7) 582 | -10/Subcaves | Met a Zionite searching for "candidates" 599 | -10/Subcaves | Ambushed by swarm of Subdwellers 601 | -10/Subcaves | Core integrity fell below 20% 603 | -10/Subcaves | Discovered new exit (range 10) 606 | -10/Subcaves | Entered Materials 606 | -8/Materials | Evolved 4 slots: Propulsion x2, Utility x2 698 | -8/Materials | Core integrity fell below 50% 728 | -8/Materials | Lost 6 parts (1p3n2w) 804 | -8/Materials | Core integrity fell below 20% 804 | -8/Materials | Self-destructed Last Messages --------------- U-05 Engineer lays Concrete. Acquired 1 matter. U-05 Engineer lays Concrete. Acquired 15 matter. U-05 Engineer lays Concrete. U-05 Engineer builds a Wall. Acquired 17 matter. U-05 Engineer lays Concrete. U-05 Engineer builds a Wall. G-47 Trooper destroyed. U-05 Engineer lays Concrete. U-05 Engineer builds a Wall. U-05 Engineer lays Concrete. Imp. VTOL Module destroyed. Missile Launcher destroyed. Destroyed Missile Launcher. Atomic Centrifuge disabled. U-05 Engineer lays Concrete. Hacking Suite severed. U-05 Engineer lays Concrete. Map ----- +----------------------------------------------------+ | ??????????????# " # | | ??????????????# # *# | | ???????######## # !%# | | ######## + # # | | # # # # # | | # ! # ######## + # | | # # #??????# #######""## | | #""" #+######??????# " | | #""" # ############ %= """ " | | #""" # *= # """ " | | #""" + # """ " | | # # # | | #""" ### #### + | | #""" #?# #??# # # ######### | | #""" #?# #??#!!**== """?? | | #""" #?# #??#!!**== """?? | | # #?# #??####### """ # | | ########?# #???????# # | | ?????????#g#???????### [ # | | ???#######/##??????# + # | | ???# #??????# # "T" # | | ???# "" ######## # """ # | | ???#! "" # ########### | | ???# "" Y #??? | | ???# l #??? | | ???#"" @ u #??? | | ???#"Y ###/######### #??? | | ???#"" ## ## #??# #??? | | ???# ## # #??# #??? | | ???########### ## " #??# #??? | | ?????????????+ ## """ #?##/#### | | ?????????????# ## """ #?# | | ?????????????# ## """ #?# """ | | ?????????????# ## #?# """ | | ?????????????###### #?# """ | | ??????????????????# #?# """ | | ??????????????????##+#######?# | | ???????????????????# ###########+### | | ???????????????????# | | ???????????????????+ | | ???????????????????# | | ???????????????????###+#########+### | | ???????????????????????????????????? | | ???????????????????????????????????? | | ???????????????????????????????????? | | ???????????????????????????????????? | | ???????????????????????????????????? | | | | | | | +----------------------------------------------------+ Best States ------------- Heat Dissipation 31 Energy Generation 10 Energy Capacity 250 Matter Stores 277 Matter Capacity 400 Sight Range 16 Robot Scan Range 14 Terrain Scan Density 10 Propulsion Shielding 33 Evasion (%) 63 Recoil Reduction 2 Offensive Hacking 20 Item Schematics ----------------- None Robot Schematics ------------------ None Fabricated ------------ Nothing Alien Tech Used ----------------- None Achievements -------------- Risk Taker Challenges ------------ None Game ------ Seed PointyDataMinigun Manual? 0 Play Time 00:24:15 Cumulative 2.8 hours Start 2024.12.30 @ 23:30:10 End 2024.12.30 @ 23:51:46 Sessions 1 Manual Loads 0 Difficulty Rogue Special Mode None Game No. 5 Rogue 2 Adventurer 0 Explorer 3 Win Type - Total 0 Types 0/0/0/0/0/0/0/0/0 Lore% 0 Gallery% 5 Achievement% 5 Wizard Run 0 Options --------- Layout 1 ASCII 0 Keyboard 0 Movement Mouse Keybinds 0 Fullscreen 0 Font 20/SmallcapsGlow Map View 50x35 Zoom Use 0% Tactical HUD 0 Map Filters NONE Filters NONE Steam 1 RUN: 63ae1ce3-d993-4c18-9db4-989b275a60a3